[Event "Late-Titled-Tuesday-Blitz-September-12-2023"]
[Site "Chess.com"]
[Date "2023.09.12"]
[Round "8"]
[White "YellowJacek"]
[Black "PawnEatingZombie"]
[Result "1-0"]
[WhiteElo "2303"]
[BlackElo "2184"]
[TimeControl "180+1"]
[EndTime "15:23:54 PDT"]
[Termination "YellowJacek won by checkmate"]

1. e4 {[%clk 0:03:00]} 1... Nf6 {[%clk 0:01:59.5]} 2. e5 {[%clk 0:02:45.8]} 2...
Nd5 {[%clk 0:01:59.2]} 3. d4 {[%clk 0:02:46.1]} 3... d6 {[%clk 0:01:59.5]} 4.
Nf3 {[%clk 0:02:45.5]} 4... dxe5 {[%clk 0:01:59.6]} 5. Nxe5 {[%clk 0:02:44.9]}
5... c6 {[%clk 0:01:59.8]} 6. Bc4 {[%clk 0:02:43.3]} 6... Bf5 {[%clk 0:01:58.7]}
7. c3 {[%clk 0:02:36]} 7... Nd7 {[%clk 0:01:58.5]} 8. Nf3 {[%clk 0:02:23.1]}
8... e6 {[%clk 0:01:58.2]} 9. O-O {[%clk 0:02:22.5]} 9... Be7 {[%clk 0:01:57.6]}
10. Re1 {[%clk 0:02:19.3]} 10... O-O {[%clk 0:01:57.8]} 11. Nbd2 {[%clk
0:02:18.8]} 11... h6 {[%clk 0:01:57.8]} 12. Ne4 {[%clk 0:02:18]} 12... N7f6
{[%clk 0:01:57.3]} 13. Ng3 {[%clk 0:02:16.6]} 13... Bh7 {[%clk 0:01:56.9]} 14.
Ne5 {[%clk 0:02:11.4]} 14... Rc8 {[%clk 0:01:54.7]} 15. Qe2 {[%clk 0:02:10.7]}
15... b5 {[%clk 0:01:44]} 16. Bb3 {[%clk 0:02:10]} 16... a6 {[%clk 0:01:42]} 17.
a4 {[%clk 0:02:08.4]} 17... Qb6 {[%clk 0:01:34.7]} 18. axb5 {[%clk 0:02:07.5]}
18... axb5 {[%clk 0:01:34.2]} 19. Bd2 {[%clk 0:01:54.6]} 19... Bd6 {[%clk
0:01:12.8]} 20. Nd3 {[%clk 0:01:40.4]} 20... c5 {[%clk 0:00:58.9]} 21. Nxc5
{[%clk 0:01:38.6]} 21... Bxc5 {[%clk 0:00:59.8]} 22. dxc5 {[%clk 0:01:38.7]}
22... Qxc5 {[%clk 0:01:00.1]} 23. Qf3 {[%clk 0:01:25.7]} 23... b4 {[%clk
0:00:48.9]} 24. cxb4 {[%clk 0:01:24.7]} 24... Nxb4 {[%clk 0:00:48.9]} 25. Bxh6
{[%clk 0:01:21.5]} 25... Nd3 {[%clk 0:00:42.8]} 26. Red1 {[%clk 0:01:02.5]}
26... Qxf2+ {[%clk 0:00:31.7]} 27. Qxf2 {[%clk 0:01:01.9]} 27... Nxf2 {[%clk
0:00:32.6]} 28. Kxf2 {[%clk 0:00:57.2]} 28... gxh6 {[%clk 0:00:32.5]} 29. Rd2
{[%clk 0:00:46.4]} 29... Rb8 {[%clk 0:00:32.2]} 30. Bc4 {[%clk 0:00:44.3]} 30...
h5 {[%clk 0:00:28.5]} 31. h4 {[%clk 0:00:22]} 31... Rfd8 {[%clk 0:00:22.8]} 32.
Rxd8+ {[%clk 0:00:20.8]} 32... Rxd8 {[%clk 0:00:23.7]} 33. Ke3 {[%clk
0:00:16.2]} 33... Kg7 {[%clk 0:00:18.5]} 34. b4 {[%clk 0:00:15.1]} 34... Rb8
{[%clk 0:00:16.4]} 35. b5 {[%clk 0:00:15]} 35... Bg6 {[%clk 0:00:11.5]} 36. Ra2
{[%clk 0:00:14.9]} 36... Nd7 {[%clk 0:00:11.4]} 37. Rb2 {[%clk 0:00:14.9]} 37...
Nb6 {[%clk 0:00:11.5]} 38. Kd4 {[%clk 0:00:14.8]} 38... Rc8 {[%clk 0:00:11]} 39.
Bf1 {[%clk 0:00:13.8]} 39... Kf6 {[%clk 0:00:11.1]} 40. Ne2 {[%clk 0:00:13]}
40... e5+ {[%clk 0:00:10.3]} 41. Ke3 {[%clk 0:00:12.4]} 41... Ke6 {[%clk
0:00:08.8]} 42. Ng3 {[%clk 0:00:11.2]} 42... f5 {[%clk 0:00:08.3]} 43. Kf2
{[%clk 0:00:11.2]} 43... f4 {[%clk 0:00:08.1]} 44. Ne2 {[%clk 0:00:10.6]} 44...
Kf5 {[%clk 0:00:07.4]} 45. Rb3 {[%clk 0:00:09.3]} 45... e4 {[%clk 0:00:07.4]}
46. Nc3 {[%clk 0:00:09.7]} 46... e3+ {[%clk 0:00:07.6]} 47. Kg1 {[%clk
0:00:09.6]} 47... Kg4 {[%clk 0:00:07.1]} 48. Rb4 {[%clk 0:00:09.6]} 48... Kg3
{[%clk 0:00:06.8]} 49. Ne2+ {[%clk 0:00:09]} 49... Kg4 {[%clk 0:00:07]} 50.
Rxf4# {[%clk 0:00:09.3]} 1-0

[Event "Late-Titled-Tuesday-Blitz-September-12-2023"]
[Site "Chess.com"]
[Date "2023.09.12"]
[Round "8"]
[White "azikom"]
[Black "Perecke"]
[Result "0-1"]
[WhiteElo "2644"]
[BlackElo "2517"]
[TimeControl "180+1"]
[EndTime "15:23:56 PDT"]
[Termination "Perecke won by resignation"]

1. e4 {[%clk 0:03:00.9]} 1... c5 {[%clk 0:02:57.8]} 2. Nc3 {[%clk 0:03:00.4]}
2... Nc6 {[%clk 0:02:55.8]} 3. g3 {[%clk 0:03:01.3]} 3... g6 {[%clk 0:02:55.3]}
4. Bg2 {[%clk 0:03:02.2]} 4... Bg7 {[%clk 0:02:55.9]} 5. d3 {[%clk 0:03:02.9]}
5... e6 {[%clk 0:02:56.3]} 6. h4 {[%clk 0:03:03.4]} 6... h5 {[%clk 0:02:54]} 7.
Nh3 {[%clk 0:02:56.9]} 7... Nge7 {[%clk 0:02:54.1]} 8. Be3 {[%clk 0:02:52.3]}
8... b6 {[%clk 0:02:52.4]} 9. Ng5 {[%clk 0:02:48.8]} 9... d5 {[%clk 0:02:39.9]}
10. Bd2 {[%clk 0:02:45]} 10... d4 {[%clk 0:02:35.5]} 11. Ne2 {[%clk 0:02:44]}
11... e5 {[%clk 0:02:34.6]} 12. f4 {[%clk 0:02:42.9]} 12... Bg4 {[%clk
0:02:33.7]} 13. Bh3 {[%clk 0:02:41.1]} 13... Qd7 {[%clk 0:02:32.3]} 14. Bg2
{[%clk 0:02:22.2]} 14... f6 {[%clk 0:02:12.9]} 15. Nf3 {[%clk 0:02:21.3]} 15...
O-O-O {[%clk 0:02:12.5]} 16. O-O {[%clk 0:02:08.5]} 16... f5 {[%clk 0:02:04.8]}
17. Qe1 {[%clk 0:01:47.6]} 17... fxe4 {[%clk 0:02:03.1]} 18. dxe4 {[%clk
0:01:47.4]} 18... d3 {[%clk 0:02:00.7]} 19. cxd3 {[%clk 0:01:40.4]} 19... Qxd3
{[%clk 0:01:58.5]} 20. Bc3 {[%clk 0:01:37.3]} 20... Nd4 {[%clk 0:01:50.7]} 21.
Nexd4 {[%clk 0:01:27.2]} 21... exd4 {[%clk 0:01:51.6]} 22. Bd2 {[%clk
0:01:26.5]} 22... Rhe8 {[%clk 0:01:43.5]} 23. Ng5 {[%clk 0:01:03.6]} 23... Nf5
{[%clk 0:01:30.4]} 24. Kh2 {[%clk 0:01:02.4]} 24... Ne3 {[%clk 0:01:26.4]} 25.
Bxe3 {[%clk 0:01:02.1]} 25... dxe3 {[%clk 0:01:26.2]} 26. e5 {[%clk 0:01:01.3]}
26... e2 {[%clk 0:01:06.7]} 27. Rg1 {[%clk 0:00:56.6]} 27... Qe3 {[%clk
0:01:00.5]} 28. Nf7 {[%clk 0:00:40.7]} 28... Rd1 {[%clk 0:00:27]} 29. Rxd1
{[%clk 0:00:39.9]} 29... Qxg1+ {[%clk 0:00:27.3]} 30. Qxg1 {[%clk 0:00:33.4]}
30... exd1=Q {[%clk 0:00:28.2]} 31. Qe3 {[%clk 0:00:24.6]} 31... Re7 {[%clk
0:00:07.4]} 32. Qb3 {[%clk 0:00:20.6]} 32... Be6 {[%clk 0:00:04.4]} 33. Nd6+
{[%clk 0:00:20.3]} 33... Qxd6 {[%clk 0:00:04.3]} 34. exd6 {[%clk 0:00:20.3]}
34... Bxb3 {[%clk 0:00:04.4]} 35. dxe7 {[%clk 0:00:20.7]} 35... Ba4 {[%clk
0:00:05]} 36. Be4 {[%clk 0:00:20.3]} 36... Be8 {[%clk 0:00:04.6]} 37. f5 {[%clk
0:00:19.7]} 37... gxf5 {[%clk 0:00:05.5]} 38. Bxf5+ {[%clk 0:00:19.7]} 38... Kc7
{[%clk 0:00:06.4]} 39. b3 {[%clk 0:00:19.2]} 39... Kd6 {[%clk 0:00:06.7]} 40. g4
{[%clk 0:00:18.8]} 40... hxg4 {[%clk 0:00:07.3]} 41. Bxg4 {[%clk 0:00:19.2]}
41... Kxe7 {[%clk 0:00:08.2]} 42. Kg3 {[%clk 0:00:19.9]} 42... Bf7 {[%clk
0:00:08.1]} 43. Kf4 {[%clk 0:00:20.1]} 43... c4 {[%clk 0:00:08.4]} 44. bxc4
{[%clk 0:00:20]} 44... Bxc4 {[%clk 0:00:09.3]} 45. a4 {[%clk 0:00:19.1]} 45...
Bd5 {[%clk 0:00:05.7]} 46. Kg5 {[%clk 0:00:17.8]} 46... Bf6+ {[%clk 0:00:05.3]}
47. Kh5 {[%clk 0:00:17.1]} 47... Bf7+ {[%clk 0:00:05.6]} 0-1

[Event "Late-Titled-Tuesday-Blitz-September-12-2023"]
[Site "Chess.com"]
[Date "2023.09.12"]
[Round "8"]
[White "Jaka_Brilej"]
[Black "GianmarcoVaR"]
[Result "0-1"]
[WhiteElo "2449"]
[BlackElo "2636"]
[TimeControl "180+1"]
[EndTime "15:23:56 PDT"]
[Termination "GianmarcoVaR won by resignation"]

1. d4 {[%clk 0:02:28.6]} 1... Nf6 {[%clk 0:02:50.7]} 2. Bg5 {[%clk 0:02:28.1]}
2... d5 {[%clk 0:02:49]} 3. Bxf6 {[%clk 0:02:27.8]} 3... gxf6 {[%clk 0:02:48.7]}
4. e3 {[%clk 0:02:27.3]} 4... c5 {[%clk 0:02:47.9]} 5. dxc5 {[%clk 0:02:22.7]}
5... e6 {[%clk 0:02:44.9]} 6. Nf3 {[%clk 0:02:16.4]} 6... Bxc5 {[%clk
0:02:42.3]} 7. Be2 {[%clk 0:02:16.8]} 7... Nc6 {[%clk 0:02:35.2]} 8. O-O {[%clk
0:02:14.9]} 8... e5 {[%clk 0:02:01.8]} 9. Nc3 {[%clk 0:02:05.1]} 9... Be6 {[%clk
0:02:00.5]} 10. Nh4 {[%clk 0:01:35.6]} 10... f5 {[%clk 0:01:38.2]} 11. g3 {[%clk
0:01:35.8]} 11... h5 {[%clk 0:01:34.6]} 12. a3 {[%clk 0:01:08.5]} 12... Be7
{[%clk 0:01:31.2]} 13. Ng2 {[%clk 0:01:05.5]} 13... h4 {[%clk 0:01:30.5]} 14.
Bf3 {[%clk 0:00:55.7]} 14... h3 {[%clk 0:01:09.7]} 15. Ne1 {[%clk 0:00:55.2]}
15... e4 {[%clk 0:01:08.8]} 16. Be2 {[%clk 0:00:55.2]} 16... Bf6 {[%clk
0:00:44.3]} 17. Qd2 {[%clk 0:00:38.8]} 17... Qd7 {[%clk 0:00:22.4]} 18. Rd1
{[%clk 0:00:32.7]} 18... Rd8 {[%clk 0:00:16]} 19. Nb5 {[%clk 0:00:30.3]} 19...
a6 {[%clk 0:00:09]} 20. Nd4 {[%clk 0:00:29.7]} 20... Nxd4 {[%clk 0:00:03.4]} 21.
exd4 {[%clk 0:00:29.9]} 21... Qe7 {[%clk 0:00:02.3]} 22. f4 {[%clk 0:00:24.8]}
22... Bd7 {[%clk 0:00:01.8]} 23. c3 {[%clk 0:00:23.1]} 23... Ba4 {[%clk
0:00:02.4]} 24. Rc1 {[%clk 0:00:21.8]} 24... Rg8 {[%clk 0:00:02.1]} 25. Kh1
{[%clk 0:00:21.7]} 25... Qd6 {[%clk 0:00:02.1]} 26. Bd1 {[%clk 0:00:20.3]} 26...
Bb5 {[%clk 0:00:02.1]} 27. Be2 {[%clk 0:00:20.7]} 27... Ba4 {[%clk 0:00:02.5]}
28. Bd1 {[%clk 0:00:15.8]} 28... Bc6 {[%clk 0:00:02.7]} 29. Nc2 {[%clk
0:00:14.8]} 29... a5 {[%clk 0:00:02.9]} 30. Ne3 {[%clk 0:00:14.8]} 30... Bd7
{[%clk 0:00:02.9]} 31. Be2 {[%clk 0:00:14.3]} 31... Be6 {[%clk 0:00:03.1]} 32.
Rfd1 {[%clk 0:00:13.7]} 32... Kf8 {[%clk 0:00:03.5]} 33. Rc2 {[%clk 0:00:12.7]}
33... Rh8 {[%clk 0:00:04]} 34. Rdc1 {[%clk 0:00:13.1]} 34... Rc8 {[%clk
0:00:03.4]} 35. a4 {[%clk 0:00:13.1]} 35... Kg7 {[%clk 0:00:03.4]} 36. b3 {[%clk
0:00:13.6]} 36... Kg6 {[%clk 0:00:03.5]} 37. Rd1 {[%clk 0:00:13.9]} 37... Rc7
{[%clk 0:00:03.7]} 38. Rg1 {[%clk 0:00:13.9]} 38... Kg7 {[%clk 0:00:03.7]} 39.
Rgc1 {[%clk 0:00:13.1]} 39... Rhc8 {[%clk 0:00:02.5]} 40. c4 {[%clk 0:00:13.1]}
40... dxc4 {[%clk 0:00:02.6]} 41. d5 {[%clk 0:00:13.3]} 41... cxb3 {[%clk
0:00:02.4]} 42. Rxc7 {[%clk 0:00:13]} 42... Rxc7 {[%clk 0:00:02.6]} 43. Rxc7
{[%clk 0:00:13.3]} 43... Qxc7 {[%clk 0:00:02.8]} 44. dxe6 {[%clk 0:00:13.8]}
44... b2 {[%clk 0:00:03.3]} 45. Qd1 {[%clk 0:00:06.2]} 45... Qc1 {[%clk
0:00:03.5]} 46. exf7 {[%clk 0:00:05.1]} 46... Qxd1+ {[%clk 0:00:03]} 47. Nxd1
{[%clk 0:00:04.1]} 47... b1=Q {[%clk 0:00:03.8]} 0-1

[Event "Late-Titled-Tuesday-Blitz-September-12-2023"]
[Site "Chess.com"]
[Date "2023.09.12"]
[Round "8"]
[White "Iball95"]
[Black "bazar-wokzal"]
[Result "0-1"]
[WhiteElo "2782"]
[BlackElo "2599"]
[TimeControl "180+1"]
[EndTime "15:23:57 PDT"]
[Termination "bazar-wokzal won by checkmate"]

1. e4 {[%clk 0:02:59.6]} 1... Nc6 {[%clk 0:02:58.4]} 2. Nc3 {[%clk 0:02:59.5]}
2... Nf6 {[%clk 0:02:53.6]} 3. Nf3 {[%clk 0:02:58.1]} 3... d5 {[%clk 0:02:53.6]}
4. exd5 {[%clk 0:02:49.4]} 4... Nxd5 {[%clk 0:02:52.3]} 5. Bc4 {[%clk
0:02:49.9]} 5... Be6 {[%clk 0:02:50.4]} 6. Bb3 {[%clk 0:02:49.2]} 6... Nxc3
{[%clk 0:02:48.9]} 7. bxc3 {[%clk 0:02:49.8]} 7... Bd5 {[%clk 0:02:48.9]} 8. O-O
{[%clk 0:02:49.1]} 8... e6 {[%clk 0:02:48.6]} 9. Bb2 {[%clk 0:02:47.6]} 9... Be7
{[%clk 0:02:45]} 10. c4 {[%clk 0:02:41.7]} 10... Bxf3 {[%clk 0:02:44.4]} 11.
Qxf3 {[%clk 0:02:42.6]} 11... Bf6 {[%clk 0:02:44.7]} 12. c3 {[%clk 0:02:03.9]}
12... Qxd2 {[%clk 0:02:24.7]} 13. Ba3 {[%clk 0:02:03.9]} 13... Qxc3 {[%clk
0:02:14.8]} 14. Qg4 {[%clk 0:02:04.2]} 14... O-O-O {[%clk 0:02:06.4]} 15. Rab1
{[%clk 0:01:53.1]} 15... h5 {[%clk 0:01:52.1]} 16. Qe4 {[%clk 0:01:48.1]} 16...
Rd4 {[%clk 0:01:49]} 17. Qe2 {[%clk 0:01:48.2]} 17... Rd2 {[%clk 0:01:46]} 18.
Qe4 {[%clk 0:01:48]} 18... Qe5 {[%clk 0:01:33.2]} 19. Qf3 {[%clk 0:01:37.1]}
19... Nd4 {[%clk 0:01:29.7]} 20. Qh3 {[%clk 0:01:37.3]} 20... Qf5 {[%clk
0:01:21.6]} 21. Qe3 {[%clk 0:01:31.4]} 21... Bg5 {[%clk 0:01:16.5]} 22. f4
{[%clk 0:01:31.1]} 22... Rd3 {[%clk 0:01:07.4]} 23. Qf2 {[%clk 0:01:16.6]} 23...
Qxf4 {[%clk 0:00:53.5]} 24. Qb2 {[%clk 0:00:59.4]} 24... Qe3+ {[%clk 0:00:47.9]}
25. Kh1 {[%clk 0:00:59.4]} 25... Rd2 {[%clk 0:00:46.7]} 26. Qc1 {[%clk
0:00:55.6]} 26... Qe4 {[%clk 0:00:41]} 27. Rg1 {[%clk 0:00:53.8]} 27... Rxg2
{[%clk 0:00:37.7]} 28. Rxg2 {[%clk 0:00:42]} 28... Bxc1 {[%clk 0:00:37.4]} 29.
Rxc1 {[%clk 0:00:42.6]} 29... h4 {[%clk 0:00:36.1]} 30. h3 {[%clk 0:00:40.4]}
30... Ne2 {[%clk 0:00:25.2]} 31. Rc2 {[%clk 0:00:30.6]} 31... Nf4 {[%clk
0:00:23.3]} 32. c5 {[%clk 0:00:28.4]} 32... Nxg2 {[%clk 0:00:22.5]} 33. Rxg2
{[%clk 0:00:29.1]} 33... Rd8 {[%clk 0:00:22.3]} 34. Bc1 {[%clk 0:00:23.8]} 34...
Qf3 {[%clk 0:00:20.3]} 35. Kh2 {[%clk 0:00:21.8]} 35... Rd3 {[%clk 0:00:19.8]}
36. Bg5 {[%clk 0:00:16.7]} 36... Qxh3+ {[%clk 0:00:18.3]} 37. Kg1 {[%clk
0:00:17.5]} 37... Rg3 {[%clk 0:00:18.1]} 38. Rxg3 {[%clk 0:00:15.4]} 38... hxg3
{[%clk 0:00:18.5]} 39. Be3 {[%clk 0:00:14.8]} 39... Qh2+ {[%clk 0:00:18.3]} 40.
Kf1 {[%clk 0:00:15.5]} 40... g2+ {[%clk 0:00:18.7]} 41. Ke1 {[%clk 0:00:16.1]}
41... g1=Q+ {[%clk 0:00:18.9]} 42. Bxg1 {[%clk 0:00:17]} 42... Qxg1+ {[%clk
0:00:19.8]} 43. Kd2 {[%clk 0:00:17.9]} 43... Qxc5 {[%clk 0:00:19.5]} 44. a4
{[%clk 0:00:17.6]} 44... Qb4+ {[%clk 0:00:19.6]} 45. Kc2 {[%clk 0:00:17.2]}
45... c5 {[%clk 0:00:20.1]} 46. a5 {[%clk 0:00:18.1]} 46... c4 {[%clk
0:00:20.4]} 47. Ba2 {[%clk 0:00:18.9]} 47... Qa4+ {[%clk 0:00:20.5]} 48. Kb2
{[%clk 0:00:19]} 48... c3+ {[%clk 0:00:21]} 49. Kxc3 {[%clk 0:00:19.3]} 49...
Qxa2 {[%clk 0:00:20.9]} 50. a6 {[%clk 0:00:20.2]} 50... Qxa6 {[%clk 0:00:20.8]}
51. Kd4 {[%clk 0:00:21.1]} 51... Qd6+ {[%clk 0:00:20.9]} 52. Ke4 {[%clk
0:00:21.7]} 52... Qd5+ {[%clk 0:00:21.4]} 53. Kf4 {[%clk 0:00:22.3]} 53... a5
{[%clk 0:00:21.9]} 54. Kg4 {[%clk 0:00:23.1]} 54... a4 {[%clk 0:00:22.4]} 55.
Kh4 {[%clk 0:00:23.9]} 55... a3 {[%clk 0:00:23]} 56. Kg3 {[%clk 0:00:24.6]}
56... a2 {[%clk 0:00:23.6]} 57. Kf2 {[%clk 0:00:25.4]} 57... a1=Q {[%clk
0:00:23.7]} 58. Ke3 {[%clk 0:00:26.1]} 58... Qc3+ {[%clk 0:00:23.8]} 59. Kf2
{[%clk 0:00:24.8]} 59... Qdd2+ {[%clk 0:00:23.9]} 60. Kf1 {[%clk 0:00:25.4]}
60... Qcc1# {[%clk 0:00:24.8]} 0-1

[Event "Late-Titled-Tuesday-Blitz-September-12-2023"]
[Site "Chess.com"]
[Date "2023.09.12"]
[Round "8"]
[White "HrvojeZagreb"]
[Black "cthulhuuu"]
[Result "1-0"]
[WhiteElo "2289"]
[BlackElo "2455"]
[TimeControl "180+1"]
[EndTime "15:23:59 PDT"]
[Termination "HrvojeZagreb won on time"]

1. f4 {[%clk 0:02:57.6]} 1... d5 {[%clk 0:02:54.5]} 2. b3 {[%clk 0:02:57.4]}
2... Nf6 {[%clk 0:02:51.1]} 3. Bb2 {[%clk 0:02:57.8]} 3... d4 {[%clk 0:02:51.9]}
4. Nf3 {[%clk 0:02:55.3]} 4... c5 {[%clk 0:02:51.8]} 5. a4 {[%clk 0:02:52.3]}
5... Nc6 {[%clk 0:02:51.8]} 6. Na3 {[%clk 0:02:50.4]} 6... Bf5 {[%clk 0:02:43]}
7. g3 {[%clk 0:02:37.4]} 7... h5 {[%clk 0:02:16.9]} 8. Bg2 {[%clk 0:02:35.8]}
8... e6 {[%clk 0:02:16.4]} 9. Nc4 {[%clk 0:02:21.8]} 9... Be7 {[%clk 0:02:12.4]}
10. e3 {[%clk 0:02:15.6]} 10... Ne4 {[%clk 0:01:53.7]} 11. exd4 {[%clk
0:02:10.5]} 11... cxd4 {[%clk 0:01:54.1]} 12. d3 {[%clk 0:02:07.5]} 12... Bb4+
{[%clk 0:01:53.7]} 13. Kf1 {[%clk 0:02:03.4]} 13... Nc3 {[%clk 0:01:53.4]} 14.
Bxc3 {[%clk 0:01:55.2]} 14... Bxc3 {[%clk 0:01:54.3]} 15. Rb1 {[%clk 0:01:53.9]}
15... f6 {[%clk 0:01:42.5]} 16. Nh4 {[%clk 0:01:50.5]} 16... Bg4 {[%clk
0:01:39.2]} 17. Bf3 {[%clk 0:01:46.6]} 17... g5 {[%clk 0:01:21.1]} 18. Bxg4
{[%clk 0:01:11.9]} 18... hxg4 {[%clk 0:01:18]} 19. Ng2 {[%clk 0:01:10.6]} 19...
f5 {[%clk 0:01:06.7]} 20. Qe2 {[%clk 0:01:06.5]} 20... Qd5 {[%clk 0:01:05.1]}
21. Kg1 {[%clk 0:00:45.4]} 21... O-O-O {[%clk 0:00:53.8]} 22. fxg5 {[%clk
0:00:45.4]} 22... e5 {[%clk 0:00:52.6]} 23. Rf1 {[%clk 0:00:42.8]} 23... Rdf8
{[%clk 0:00:46.2]} 24. Nh4 {[%clk 0:00:21.4]} 24... Qe6 {[%clk 0:00:22.4]} 25.
h3 {[%clk 0:00:10.5]} 25... Rfg8 {[%clk 0:00:11.2]} 26. Rxf5 {[%clk 0:00:09.6]}
26... Rxh4 {[%clk 0:00:10.1]} 27. hxg4 {[%clk 0:00:09.4]} 27... Rxh1+ {[%clk
0:00:09.7]} 28. Kxh1 {[%clk 0:00:10.3]} 28... Re8 {[%clk 0:00:06.6]} 29. Kg2
{[%clk 0:00:09.6]} 29... a6 {[%clk 0:00:06.6]} 30. Qe4 {[%clk 0:00:08.5]} 30...
b5 {[%clk 0:00:06.6]} 31. axb5 {[%clk 0:00:08.4]} 31... axb5 {[%clk 0:00:07]}
32. Nb6+ {[%clk 0:00:07.4]} 32... Kb7 {[%clk 0:00:07.2]} 33. Nd5 {[%clk
0:00:08.3]} 33... Rd8 {[%clk 0:00:07.3]} 34. Nf6 {[%clk 0:00:07.6]} 34... Kb6
{[%clk 0:00:06.9]} 35. g6 {[%clk 0:00:07.9]} 35... Rg8 {[%clk 0:00:06.6]} 36.
Nxg8 {[%clk 0:00:07.6]} 36... Qxg8 {[%clk 0:00:07.5]} 37. Rf6 {[%clk 0:00:07.6]}
37... Qc8 {[%clk 0:00:06.6]} 38. Qxc6+ {[%clk 0:00:07.6]} 38... Qxc6+ {[%clk
0:00:03.4]} 39. Rxc6+ {[%clk 0:00:08.5]} 39... Kxc6 {[%clk 0:00:03.8]} 40. g7
{[%clk 0:00:09.4]} 40... e4 {[%clk 0:00:03.7]} 41. g8=Q {[%clk 0:00:10.3]} 41...
exd3 {[%clk 0:00:03.7]} 42. cxd3 {[%clk 0:00:08.4]} 42... b4 {[%clk 0:00:03.8]}
43. Qc4+ {[%clk 0:00:08.4]} 1-0

[Event "Late-Titled-Tuesday-Blitz-September-12-2023"]
[Site "Chess.com"]
[Date "2023.09.12"]
[Round "8"]
[White "jcibarra"]
[Black "FairChess_on_YouTube"]
[Result "0-1"]
[WhiteElo "2942"]
[BlackElo "3068"]
[TimeControl "180+1"]
[EndTime "15:24:02 PDT"]
[Termination "FairChess_on_YouTube won by resignation"]

1. e4 {[%clk 0:03:00.9]} 1... e5 {[%clk 0:03:00.4]} 2. Nf3 {[%clk 0:03:01]} 2...
Nc6 {[%clk 0:03:00.8]} 3. Nc3 {[%clk 0:03:01.5]} 3... Nf6 {[%clk 0:03:00.4]} 4.
h3 {[%clk 0:03:02]} 4... d5 {[%clk 0:02:57.6]} 5. exd5 {[%clk 0:03:01.9]} 5...
Nxd5 {[%clk 0:02:58.3]} 6. Bb5 {[%clk 0:03:02]} 6... Nxc3 {[%clk 0:02:58.7]} 7.
bxc3 {[%clk 0:03:02.5]} 7... Bd6 {[%clk 0:02:59.3]} 8. O-O {[%clk 0:03:02.6]}
8... O-O {[%clk 0:02:59.1]} 9. d4 {[%clk 0:03:03.2]} 9... Bd7 {[%clk 0:02:59]}
10. Rb1 {[%clk 0:02:56]} 10... exd4 {[%clk 0:02:46.3]} 11. cxd4 {[%clk
0:02:51.1]} 11... b6 {[%clk 0:02:46.1]} 12. Bg5 {[%clk 0:02:49]} 12... Be7
{[%clk 0:02:43.1]} 13. Bf4 {[%clk 0:02:41.3]} 13... Na5 {[%clk 0:02:36.4]} 14.
Bd3 {[%clk 0:02:38.5]} 14... Be6 {[%clk 0:02:36.3]} 15. a4 {[%clk 0:02:13.2]}
15... Bd6 {[%clk 0:02:36.1]} 16. Bg5 {[%clk 0:02:09]} 16... Qd7 {[%clk
0:02:35.7]} 17. Bb5 {[%clk 0:02:06.7]} 17... c6 {[%clk 0:02:33.2]} 18. Bd3
{[%clk 0:02:04.9]} 18... Bf5 {[%clk 0:02:32.7]} 19. Re1 {[%clk 0:01:59.5]} 19...
Rfe8 {[%clk 0:02:31.9]} 20. Qd2 {[%clk 0:01:55.3]} 20... h6 {[%clk 0:02:31.4]}
21. Be3 {[%clk 0:01:45.5]} 21... Re7 {[%clk 0:02:25.7]} 22. Bf1 {[%clk
0:01:17.8]} 22... Rae8 {[%clk 0:02:24.7]} 23. Rbd1 {[%clk 0:01:12.3]} 23... Be4
{[%clk 0:02:21.9]} 24. Ne5 {[%clk 0:01:03.7]} 24... Bxe5 {[%clk 0:02:12.5]} 25.
dxe5 {[%clk 0:01:04.6]} 25... Qxd2 {[%clk 0:02:12.3]} 26. Bxd2 {[%clk
0:01:05.5]} 26... Bxc2 {[%clk 0:02:11.3]} 27. Rc1 {[%clk 0:01:03.7]} 27... Bxa4
{[%clk 0:02:10.4]} 28. Bxa5 {[%clk 0:01:04.2]} 28... bxa5 {[%clk 0:02:10.2]} 29.
Ra1 {[%clk 0:01:04.7]} 29... Bb5 {[%clk 0:02:05.5]} 30. Rxa5 {[%clk 0:01:04.2]}
30... Rxe5 {[%clk 0:01:56.7]} 31. Rxe5 {[%clk 0:01:04.1]} 31... Rxe5 {[%clk
0:01:57.5]} 32. Bxb5 {[%clk 0:01:04.4]} 32... cxb5 {[%clk 0:01:55]} 33. Rxa7
{[%clk 0:01:05]} 33... Re1+ {[%clk 0:01:21]} 34. Kh2 {[%clk 0:01:04.9]} 34... g5
{[%clk 0:01:20.2]} 35. Rb7 {[%clk 0:01:03.2]} 35... Rb1 {[%clk 0:01:20.3]} 36.
Kg3 {[%clk 0:00:53.1]} 36... Kg7 {[%clk 0:01:18.8]} 37. h4 {[%clk 0:00:53.2]}
37... Kg6 {[%clk 0:01:15.9]} 38. Rb6+ {[%clk 0:00:52.6]} 38... f6 {[%clk
0:01:16]} 39. hxg5 {[%clk 0:00:53]} 39... hxg5 {[%clk 0:01:16.1]} 40. f4 {[%clk
0:00:49.3]} 40... Kf5 {[%clk 0:01:10.6]} 41. fxg5 {[%clk 0:00:48.9]} 41... Kxg5
{[%clk 0:01:07.8]} 42. Kf3 {[%clk 0:00:45.3]} 42... Kf5 {[%clk 0:01:05.5]} 43.
Rb8 {[%clk 0:00:40.5]} 43... Rb3+ {[%clk 0:01:05.1]} 44. Kf2 {[%clk 0:00:40.6]}
44... Kf4 {[%clk 0:01:01.3]} 45. g3+ {[%clk 0:00:38.7]} 45... Ke4 {[%clk
0:01:01.5]} 46. Re8+ {[%clk 0:00:38.1]} 46... Kf5 {[%clk 0:01:02]} 47. Rc8
{[%clk 0:00:33.7]} 47... b4 {[%clk 0:00:54.4]} 48. Rb8 {[%clk 0:00:24]} 48...
Ke4 {[%clk 0:00:51.1]} 49. Kg2 {[%clk 0:00:21]} 49... Rb2+ {[%clk 0:00:43.8]}
50. Kh3 {[%clk 0:00:19.3]} 50... Rb1 {[%clk 0:00:41.2]} 51. Rb6 {[%clk
0:00:16.4]} 51... b3 {[%clk 0:00:40.6]} 52. Kg4 {[%clk 0:00:13.8]} 52... b2
{[%clk 0:00:35.9]} 53. Re6+ {[%clk 0:00:12.6]} 53... Kd5 {[%clk 0:00:35.7]} 54.
Rb6 {[%clk 0:00:12.9]} 54... f5+ {[%clk 0:00:32.9]} 55. Kg5 {[%clk 0:00:12.7]}
55... f4 {[%clk 0:00:33]} 56. Rb5+ {[%clk 0:00:04.3]} 56... Kc6 {[%clk
0:00:27.7]} 57. Rxb2 {[%clk 0:00:02.4]} 57... Rxb2 {[%clk 0:00:28.6]} 58. Kxf4
{[%clk 0:00:02.1]} 58... Kd7 {[%clk 0:00:28.7]} 0-1